bitfinex/quotes_ETHUSD_20241124
["timestamp","ask_amount","ask_price","bid_price","bid_amount"]
[1732410188547,3.82174775,3418.9,3418.8,2.925]
[1732410188757,0.82174775,3418.9,3418.8,2.925]
[1732410192813,0.55,3418.9,3418.8,2.925]
[1732410193015,0.82185376,3418.9,3418.8,2.925]
[1732410194060,0.82190605,3418.9,3418.8,2.925]
[1732410196682,3.82190605,3418.9,3418.8,2.925]
[1732410196855,5.00977879,3418.9,3418.8,2.925]
[1732410197049,7.81369707,3418.9,3418.8,2.925]
[1732410197578,7.54179102,3418.9,3418.8,2.925]
[1732410197774,2.92526,3418.5,3417.5,0.7553]
[1732410197942,3.55,3417.6,3416.4,0.7646]
[1732410198138,0.63539183,3417.5,3416.4,0.7646]
[1732410198361,3.5792953,3417.6,3416.4,0.7646]
[1732410198579,0.27245764,3417.5,3416.4,0.7646]
[1732410198877,0.55,3417.3,3416.4,0.7646]
[1732410199043,3.0,3417.6,3416.5,0.02926481]
[1732410199239,0.27246538,3417.5,3416.6,0.7646]
[1732410199541,0.55,3418.0,3416.7,0.02926164]
[1732410199741,0.32977751,3418.4,3416.8,0.7646]
[1732410199742,0.43601124,3418.4,3416.8,0.7646]
[1732410200076,2.92451,3419.4,3416.8,0.7646]
[1732410200077,0.2724691,3418.3,3416.9,0.02925656]
[1732410200253,0.43589703,3418.9,3417.0,0.7646]
[1732410200439,0.27256161,3418.8,3417.2,0.7646]
[1732410200638,0.27256161,3418.7,3417.3,0.18509645]
[1732410200879,0.43589703,3418.9,3417.4,0.7646]
[1732410201053,0.27254752,3418.9,3417.6,0.7646]
[1732410201263,0.27254752,3418.9,3417.7,0.79385118]
[1732410201775,3.70862355,3418.9,3417.7,0.79385118]
[1732410201950,0.27254752,3418.8,3417.7,0.79385118]
[1732410202158,0.55,3418.7,3417.7,0.79385118]
[1732410202343,0.27254752,3418.6,3417.7,0.79385118]
[1732410202545,0.27254752,3418.6,3417.8,0.03414372]
[1732410202840,0.27254752,3418.6,3417.9,0.7646]
[1732410203043,0.27254752,3418.6,3418.0,0.02287778]
[1732410203549,0.27254752,3418.6,3418.1,0.7646]
[1732410203759,0.27254752,3418.6,3418.2,0.01030846]
[1732410204579,3.0,3418.8,3418.3,0.7646]
[1732410204877,0.27263699,3418.7,3418.4,0.00620491]
[1732410205083,0.27263699,3418.6,3418.4,0.00620491]
[1732410205293,3.0,3418.8,3418.4,0.00620491]
[1732410205446,0.27265451,3418.7,3418.4,0.00620491]
[1732410205647,0.27265451,3418.6,3418.4,0.00620491]
[1732410205975,3.0,3418.8,3418.4,0.00620491]
[1732410206179,0.27265363,3418.7,3418.5,0.7646]
[1732410206482,3.0,3419.6,3418.5,0.7646]
[1732410206779,3.0,3419.6,3417.4,3.0331694]
[1732410206780,0.70885682,3419.5,3418.7,0.7646]
[1732410206939,0.27263724,3419.4,3418.9,0.7646]
[1732410207139,0.27263724,3419.3,3418.9,0.7646]
[1732410207356,0.43621958,3419.7,3418.9,0.7646]
[1732410207549,0.27260297,3419.6,3419.0,0.02924312]
[1732410207886,2.80391828,3420.2,3419.1,0.7646]
[1732410207887,0.43621958,3420.1,3419.1,0.7646]
[1732410208044,0.30186757,3420.0,3419.1,0.7646]
[1732410208391,3.07649055,3419.9,3419.1,0.7646]
[1732410208548,0.30186757,3419.8,3419.1,0.7646]
[1732410208753,0.27257227,3419.7,3419.1,0.7646]
[1732410209089,3.46535227,3419.8,3419.1,0.7646]
[1732410209284,3.0,3419.4,3419.1,0.7646]
[1732410209449,0.55,3419.3,3419.1,0.7646]
[1732410209649,0.55,3419.3,3419.2,0.00356264]
[1732410209853,0.82252517,3419.3,3419.2,0.00356264]
[1732410212393,0.55,3419.3,3419.2,0.00356264]
[1732410212586,0.55,3419.6,3419.2,0.00356264]
[1732410212904,0.55,3419.4,3419.2,0.00356264]
[1732410213115,0.55,3419.5,3419.2,0.00356264]
[1732410213279,0.55,3419.5,3419.1,0.7646]
[1732410213280,0.27244319,3419.4,3419.1,0.7646]
[1732410213597,0.45868883,3419.3,3419.1,0.7646]
[1732410213798,0.55,3419.5,3419.1,0.7646]
[1732410214010,0.55,3419.3,3417.7,0.02924721]
[1732410214215,0.55,3419.3,3417.8,0.8116]
[1732410214216,0.55,3419.1,3417.8,0.8116]
[1732410214501,0.30174409,3419.0,3418.0,0.8116]
[1732410214797,0.27244879,3418.9,3418.0,0.8116]
[1732410215109,0.75679478,3419.0,3418.0,0.8116]
[1732410215313,0.27246788,3418.9,3418.0,0.8116]
[1732410215467,0.75679478,3419.0,3418.0,0.8116]
[1732410215670,0.27246116,3418.9,3418.0,0.8116]
[1732410215970,0.55,3419.1,3418.0,0.8116]
[1732410216197,0.2724485,3419.0,3418.0,0.8116]
[1732410216506,0.27244609,3418.9,3418.0,0.8116]
[1732410216665,0.55,3419.1,3418.0,0.8116]
[1732410216862,0.27244609,3419.0,3418.2,0.806]
[1732410217081,0.55,3419.1,3418.3,0.83799859]
[1732410217275,2.32679412,3419.6,3418.3,0.83799859]
[1732410217276,0.55,3419.5,3418.4,0.00241458]
[1732410217496,0.76444515,3419.6,3418.4,0.00241458]
[1732410217497,0.55,3419.3,3418.5,0.806]
[1732410217703,0.55,3419.3,3418.6,0.00241447]
[1732410217905,0.55,3419.3,3418.7,0.806]
[1732410218104,0.55,3419.6,3418.8,0.00241433]
[1732410218307,0.43585936,3419.7,3418.8,0.00241433]
[1732410218308,0.27239483,3419.5,3418.9,0.806]
[1732410218603,3.0,3420.0,3419.0,0.00241419]
[1732410218773,0.70822057,3419.9,3419.1,0.806]
[1732410219116,0.27236121,3419.8,3419.2,0.00241405]
[1732410221197,0.27236121,3419.8,3419.3,0.8025]
[1732410221726,0.27236121,3419.7,3419.3,0.8025]
[1732410221920,0.98585936,3420.0,3419.3,0.8025]
[1732410222080,0.27224507,3419.9,3419.3,0.8025]
[1732410222285,0.27224507,3419.8,3419.3,0.8025]
[1732410222597,0.27224507,3419.7,3419.3,0.8025]
[1732410222792,1.66483712,3420.0,3419.3,0.8025]
[1732410222986,1.04838305,3419.9,3419.3,0.8025]
[1732410223188,0.27221221,3419.8,3419.3,0.8025]
[1732410224139,0.77617084,3419.9,3419.3,0.8025]
[1732410224337,0.2721958,3419.8,3419.3,0.8025]
[1732410224629,0.2721958,3419.7,3419.3,0.8025]
[1732410224801,0.74687554,3419.9,3419.3,0.8025]
[1732410225125,0.27217876,3419.8,3419.3,0.8025]
[1732410225438,0.27217876,3419.7,3419.3,0.8025]
[1732410225646,0.77617084,3419.9,3419.3,0.8025]
[1732410225844,0.27216451,3419.8,3419.3,0.8025]
[1732410226014,0.27216451,3419.7,3419.3,0.8025]
[1732410226218,0.74687554,3419.9,3419.3,0.8025]
[1732410226518,0.27214666,3419.8,3419.3,0.8025]
[1732410226720,0.27214666,3419.7,3419.3,0.8025]
[1732410226915,3.77617084,3419.9,3419.3,0.8025]
[1732410227231,0.27214409,3419.8,3419.3,0.8025]
[1732410227430,0.27214409,3419.7,3419.3,0.8025]
[1732410227639,0.98541188,3420.0,3419.3,0.8025]
[1732410227944,0.27213173,3419.9,3419.3,0.8025]
[1732410228142,0.27213173,3419.8,3419.3,0.8025]
[1732410228351,0.27213173,3419.7,3419.3,0.8025]
[1732410228524,0.98541188,3420.0,3419.3,0.8025]
[1732410228722,0.2722976,3419.9,3419.3,0.79191379]
[1732410228920,0.2722976,3419.8,3419.3,0.79191379]
[1732410229119,0.2722976,3419.9,3419.3,0.79191379]
[1732410229349,0.2722976,3419.8,3419.3,0.79191379]
[1732410229653,0.2722976,3419.7,3419.3,0.79191379]
[1732410229852,0.2722976,3419.9,3419.3,0.79191379]
[1732410230147,0.27256162,3419.8,3419.3,0.79191379]
[1732410230346,0.27256162,3419.7,3419.3,0.79191379]
[1732410230553,0.43613418,3420.0,3419.3,0.79191379]
[1732410230860,0.27258984,3419.9,3419.3,0.79191379]
[1732410231154,0.27258984,3419.8,3419.3,0.79191379]
[1732410231313,0.27258984,3419.7,3419.3,0.82115277]
[1732410231514,0.46542948,3420.3,3419.3,0.82115277]
[1732410231738,0.27259594,3420.2,3419.3,0.82115277]
[1732410231952,0.27259594,3420.1,3419.3,0.82115277]
[1732410232246,0.27259594,3420.0,3419.3,0.82115277]
[1732410232452,0.27259594,3419.9,3419.3,0.82115277]
[1732410232638,0.27259594,3419.8,3419.3,0.82115277]
[1732410232839,0.27259594,3419.7,3419.3,0.82115277]
[1732410233036,0.46542948,3420.3,3419.3,0.82115277]
[1732410233237,0.27262752,3420.2,3419.3,0.82115277]
[1732410233443,0.30192282,3420.1,3419.3,0.79191379]
[1732410233663,3.82262752,3420.0,3419.3,0.79191379]
[1732410233951,0.7087617,3419.9,3419.3,0.79191379]
[1732410234256,0.27262752,3419.8,3419.3,0.79191379]
[1732410234553,0.27262752,3419.7,3419.3,0.79191379]
[1732410234719,0.27262752,3419.6,3419.3,0.79191379]
[1732410234914,0.27262752,3419.8,3419.3,0.79191379]
[1732410235119,0.43613418,3419.9,3419.3,0.79191379]
[1732410235120,0.27276477,3419.7,3419.3,0.79191379]
[1732410235351,3.0,3420.0,3419.3,0.79191379]
[1732410235563,0.70933684,3419.9,3419.3,0.79191379]
[1732410235718,3.0,3420.0,3419.3,0.79191379]
[1732410235920,0.70932233,3419.9,3419.3,0.79191379]
[1732410236222,0.27281628,3419.8,3419.3,0.79191379]
[1732410236421,0.27281628,3419.7,3419.3,0.79191379]
[1732410236672,0.27281628,3419.6,3419.3,0.79191379]
[1732410236847,0.43650605,3419.9,3419.3,0.79191379]
[1732410237058,0.27287012,3419.8,3419.3,0.79191379]
[1732410237361,0.27287012,3419.7,3419.3,0.79191379]
[1732410237520,0.27287012,3419.6,3419.3,0.79191379]
[1732410237855,0.43650605,3419.9,3419.3,0.79191379]
[1732410238163,0.27286243,3419.8,3419.3,0.79191379]
[1732410238323,3.0,3420.0,3419.3,0.79191379]
[1732410238523,0.70939612,3419.9,3419.3,0.79191379]
[1732410238925,0.27284466,3419.8,3419.3,0.79191379]
[1732410239125,0.27284466,3419.7,3419.3,0.79191379]
[1732410239326,0.27284466,3419.6,3419.3,0.79191379]
[1732410239529,0.43655146,3419.9,3419.3,0.79191379]
[1732410239723,0.27284544,3419.8,3419.3,0.79191379]
[1732410240043,0.27284544,3419.7,3419.3,0.79191379]
[1732410240216,0.43655146,3419.9,3419.3,0.79191379]
[1732410240419,0.2728397,3419.8,3419.3,0.79191379]
[1732410240619,0.2728397,3419.7,3419.3,0.79191379]
[1732410240860,0.2728397,3419.6,3419.3,0.79191379]
[1732410241072,0.2728397,3419.5,3419.3,0.79191379]
[1732410241229,0.2728397,3419.7,3419.3,0.79191379]
[1732410241420,3.58221828,3420.5,3419.3,0.79191379]
[1732410241421,0.55,3420.3,3419.3,0.79191379]
[1732410241623,0.27281245,3420.2,3419.3,0.79191379]
[1732410241819,0.27281245,3420.1,3419.3,0.79191379]
[1732410242046,0.27281245,3420.0,3419.3,0.79191379]
[1732410242219,0.27281245,3419.9,3419.3,0.79191379]
[1732410242419,0.27281245,3419.8,3419.3,0.79191379]
[1732410242638,0.98655146,3420.3,3419.3,0.79191379]
[1732410242836,0.27279536,3420.2,3419.3,0.79191379]
[1732410243038,0.27279536,3420.1,3419.3,0.79191379]
[1732410243272,0.27279536,3420.0,3419.3,0.79191379]
[1732410243567,0.27279536,3419.9,3419.3,0.79191379]
[1732410243779,0.41991011,3420.3,3419.3,0.79191379]
[1732410244070,0.27278698,3420.2,3419.3,0.79191379]
[1732410244269,0.27278698,3420.1,3419.3,0.79191379]
[1732410244482,0.27278698,3420.0,3419.3,0.79191379]
[1732410244636,0.27278698,3419.9,3419.3,0.79191379]
[1732410244823,0.41991011,3420.3,3419.3,0.79191379]
[1732410245026,0.55,3420.3,3419.3,0.79191379]
[1732410245242,0.30211202,3420.2,3419.3,0.79191379]
[1732410245474,0.27281672,3420.1,3419.3,0.79191379]
[1732410245768,0.27281672,3420.0,3419.3,0.79191379]
[1732410245939,0.27281672,3419.9,3419.3,0.79191379]
[1732410246139,0.27281672,3419.8,3419.3,0.79191379]
[1732410246373,0.0292953,3420.2,3419.3,0.79191379]
[1732410246374,0.27281672,3419.7,3419.3,0.79191379]
[1732410246529,0.27281672,3420.1,3419.3,0.79191379]
[1732410246862,0.27299598,3420.0,3419.3,0.79191379]
[1732410247066,0.27299598,3419.9,3419.3,0.79191379]
[1732410247240,0.27299598,3419.8,3419.3,0.79191379]
[1732410247435,0.27299598,3419.7,3419.3,0.79191379]
[1732410247630,0.55,3420.3,3419.3,0.79191379]
[1732410247829,0.2730643,3420.2,3419.3,0.79191379]
[1732410248042,0.2730643,3420.1,3419.3,0.79191379]
[1732410248268,0.2730643,3420.0,3419.3,0.79191379]
[1732410248471,0.2730643,3419.9,3419.3,0.79191379]
[1732410248780,0.2730643,3419.8,3419.3,0.79191379]
[1732410248984,0.55,3420.3,3419.3,0.79191379]
[1732410249195,0.2730955,3420.2,3419.3,0.79191379]
[1732410249483,0.2730955,3420.1,3419.3,0.79191379]
[1732410249784,0.2730955,3420.0,3419.3,0.79191379]
[1732410250072,0.2730955,3419.9,3419.5,0.7809]
[1732410250271,0.2730955,3419.8,3419.5,0.7809]
[1732410250471,3.0,3420.4,3419.5,0.7809]
[1732410250472,3.61621401,3420.4,3419.5,0.7809]
[1732410250777,0.27309387,3420.3,3419.5,0.7809]
[1732410250983,0.27309387,3420.2,3419.5,0.7809]
[1732410251187,0.27309387,3420.1,3419.6,0.02923887]
[1732410251337,0.55,3421.0,3419.7,0.7809]
[1732410251678,0.55,3420.8,3419.7,0.7809]
[1732410251918,0.2730569,3420.9,3419.7,0.7809]
[1732410251919,0.55,3420.6,3419.7,0.7809]
[1732410252070,0.55,3420.4,3419.7,0.7809]
[1732410252277,0.2730569,3420.3,3419.7,0.7809]
[1732410252518,0.2730569,3420.2,3419.7,0.7809]
[1732410252812,0.27303164,3420.1,3419.7,0.7809]
[1732410253020,0.27303164,3420.0,3419.7,0.7809]
[1732410253308,0.27303164,3419.9,3419.7,0.7809]
[1732410253520,0.17246975,3420.4,3419.7,0.7809]
[1732410253671,0.2730442,3420.3,3419.7,0.7809]
[1732410253874,0.2730442,3420.2,3419.7,0.7809]
[1732410254097,0.2730442,3420.1,3419.7,0.7809]
[1732410254311,0.2730442,3420.0,3419.7,0.7809]
[1732410254504,0.2730442,3419.9,3419.7,0.7809]
[1732410254708,0.43687058,3420.3,3419.7,0.7809]
[1732410255013,0.27305095,3420.2,3419.7,0.7809]
[1732410255326,0.27305095,3420.1,3419.7,0.7809]
[1732410255509,0.27305095,3420.0,3419.7,0.7809]
[1732410255694,0.27303911,3419.9,3419.7,0.7809]
[1732410255896,0.60934033,3420.4,3419.7,0.7809]
[1732410256111,0.27303522,3420.3,3419.7,0.7809]
[1732410256329,0.55,3420.0,3419.3,0.8025]
[1732410256626,0.55,3420.0,3419.2,0.00241405]
[1732410256627,1.22917639,3419.6,3419.2,0.00241405]
[1732410256926,1.59783522,3419.5,3419.2,0.00241405]
[1732410257124,0.27303522,3419.4,3419.2,0.00241405]
[1732410257321,0.27303522,3419.3,3419.2,0.00241405]
[1732410260248,0.2729734,3419.3,3419.2,0.00241405]
[1732410263129,0.2729734,3419.3,3419.2,0.82581405]
[1732410263324,0.55,3419.6,3419.2,0.82581405]
[1732410263547,0.27284268,3419.5,3419.2,0.82581405]
[1732410263717,0.27284268,3419.4,3419.2,0.82581405]
[1732410263913,0.27284268,3419.3,3419.2,0.82581405]
[1732410264114,0.27284268,3419.5,3419.2,0.82581405]
[1732410264417,0.27284268,3419.4,3419.2,0.82581405]
[1732410264730,0.43675744,3419.7,3419.2,0.82581405]
[1732410265052,3.0,3419.4,3419.2,0.00241405]
[1732410265358,3.0,3419.4,3418.0,0.8234]
[1732410265359,4.28737,3419.2,3418.0,0.8234]
[1732410265526,0.55,3418.6,3418.0,0.7734]
[1732410265733,0.30211788,3418.5,3418.0,0.7734]
[1732410265914,0.27282258,3418.4,3418.0,0.7734]
[1732410266458,0.55,3418.6,3418.0,0.7734]
[1732410266627,0.27260297,3418.5,3418.0,0.7734]
[1732410266818,0.27260297,3418.4,3418.0,0.7734]
[1732410267021,0.98618235,3418.6,3418.0,0.7734]
[1732410267347,0.27247349,3418.5,3418.0,0.7734]
[1732410267548,0.55,3418.6,3418.0,0.7734]
[1732410267721,0.27245313,3418.5,3416.8,0.02925499]
[1732410268762,0.27245313,3418.5,3416.9,0.8234]
[1732410269052,0.27245313,3418.5,3417.1,0.8234]
[1732410269256,0.27245313,3418.5,3417.3,0.8234]
[1732410269463,0.27245313,3418.5,3417.4,0.03167115]
[1732410269623,0.27245313,3418.5,3417.5,0.00241525]
[1732410269825,0.27245313,3418.5,3417.6,0.8234]
[1732410271867,0.5792953,3418.4,3417.6,0.8234]
[1732410272078,0.15676524,3418.3,3417.6,0.8234]
[1732410272241,0.55,3418.0,3417.5,0.00241525]
[1732410272431,3.37563458,3418.0,3417.5,0.00241525]
[1732410272619,0.55,3417.8,3417.5,0.00241525]
[1732410272824,0.55,3417.6,3417.5,0.00241525]
[1732410273123,4.11253928,3417.6,3417.5,0.00241525]
[1732410273323,4.11253928,3417.6,3417.0,0.7874]
[1732410274755,1.3162,3417.6,3417.0,0.7874]
[1732410274962,0.55,3417.8,3417.0,0.7874]
[1732410275172,1.201556,3417.8,3417.0,0.7874]
[1732410278303,1.201556,3417.8,3417.1,0.00241553]
[1732410282590,3.0,3418.4,3417.2,0.7918]
[1732410282778,2.79633928,3418.5,3417.4,0.7918]
[1732410283099,3.26158528,3418.5,3417.4,0.7918]
[1732410283411,3.26158528,3418.5,3417.5,0.02925696]
[1732410283708,3.26158528,3418.5,3417.6,0.7918]
[1732410283915,3.57913928,3418.9,3417.7,0.02925686]
[1732410284086,0.27159827,3418.8,3417.8,0.7918]
[1732410284286,2.79633928,3418.5,3417.8,0.7918]
[1732410285195,0.0292953,3418.4,3417.8,0.7918]
[1732410285518,3.5792953,3418.4,3417.8,0.7918]
[1732410285723,2.79633928,3418.1,3417.8,0.7918]
[1732410285931,3.55,3418.0,3417.8,0.7918]
[1732410286075,0.63463393,3417.9,3417.1,0.00241553]
[1732410286280,1.3328,3417.8,3417.1,0.00241553]
[1732410286705,2.79633928,3417.7,3417.1,0.00241553]
[1732410286896,0.5792953,3417.6,3417.1,0.00241553]
[1732410287225,1.11360215,3417.6,3417.1,0.00241553]
[1732410287722,4.11360215,3417.6,3417.1,0.00241553]
[1732410288218,0.55,3417.4,3417.1,0.00241553]
[1732410288521,0.0292953,3417.4,3417.1,0.00241553]
[1732410290793,0.55,3417.5,3417.1,0.00241553]
[1732410291025,0.55,3417.3,3417.1,0.00241553]
[1732410291848,0.55,3417.5,3417.1,0.00241553]
[1732410292506,0.0292953,3417.4,3417.1,0.00241553]
[1732410294113,0.55,3417.5,3417.1,0.00241553]
[1732410294320,0.2726123,3417.4,3417.1,0.00241553]
[1732410294521,0.7853,3418.7,3417.2,0.7643]
[1732410294719,0.30185619,3418.6,3417.3,0.79355769]
[1732410295017,0.27256089,3418.5,3417.3,0.79355769]
[1732410295210,0.27256089,3418.4,3417.3,0.79355769]
[1732410295435,0.27256089,3418.3,3417.3,0.7643]
[1732410295741,2.79633928,3419.7,3417.4,0.44697521]
[1732410296038,2.79633928,3419.3,3417.5,0.8022]
[1732410296338,0.27263568,3419.2,3417.7,0.8022]
[1732410296504,0.43621709,3419.5,3417.8,0.83144966]
[1732410296833,0.2725092,3419.4,3417.8,0.83144966]
[1732410297050,0.15483394,3419.5,3417.8,0.83144966]
[1732410297051,0.8225092,3419.3,3417.8,0.83144966]
[1732410297360,0.55,3419.1,3417.8,0.83144966]
[1732410297736,0.55,3419.4,3417.8,0.83144966]
[1732410298059,0.55,3419.4,3417.3,3.57627174]
[1732410298060,0.55,3418.4,3417.2,0.8022]
[1732410298222,0.55,3418.2,3417.2,0.8022]
[1732410298554,3.55,3418.0,3417.2,0.8022]
[1732410298754,0.0292953,3417.9,3417.2,0.8022]
[1732410299942,0.55,3417.7,3417.2,0.8022]
[1732410300264,0.0292953,3417.7,3417.2,0.8022]
[1732410300759,0.0292953,3417.9,3417.2,0.8022]
[1732410300963,0.27251503,3417.8,3417.2,0.8022]
[1732410301251,0.55,3418.0,3417.2,0.8022]
[1732410301557,0.55,3417.8,3417.2,0.8022]
[1732410301920,0.0292953,3417.9,3417.2,0.8022]
[1732410302121,0.55,3417.6,3417.2,0.8022]
[1732410302461,0.55,3417.8,3417.2,0.8022]
[1732410302756,0.55,3417.6,3417.2,0.8022]
[1732410302962,0.5792953,3417.9,3417.2,0.8022]
[1732410303161,0.55,3417.7,3417.2,0.8022]
[1732410303720,0.5792953,3418.0,3417.2,0.8022]
[1732410303920,0.55,3417.8,3417.2,0.8022]
[1732410304340,0.55,3417.9,3417.2,0.8022]
[1732410304574,0.55,3418.1,3417.2,0.8022]
[1732410304777,0.55,3417.9,3417.2,0.8022]
[1732410304991,0.27253399,3417.8,3417.2,0.8022]
[1732410305189,0.5792953,3417.7,3417.2,0.8022]
[1732410305395,0.55,3417.5,3417.2,0.8022]
[1732410305562,0.55,3417.5,3417.1,0.00241553]
[1732410305563,0.0292953,3417.4,3417.1,0.00241553]
[1732410308606,0.82253595,3417.3,3417.1,0.00241553]
[1732410308759,0.30184459,3417.2,3417.1,0.00241553]
[1732410308955,5.3272461,3417.2,3417.1,0.00241553]
[1732410309405,2.3272461,3417.2,3417.1,0.00241553]
[1732410309571,5.3272461,3417.2,3417.1,0.00241553]
[1732410309768,5.76331617,3417.2,3417.1,0.00241553]
[1732410310494,5.05469681,3417.2,3417.1,0.00241553]
[1732410310699,5.7631141,3417.2,3417.1,0.00241553]
[1732410310860,5.76311502,3417.2,3417.1,0.00241553]
[1732410311500,3.55,3416.7,3415.5,0.831]
[1732410311691,0.55,3416.2,3415.5,0.831]
[1732410311895,0.0292953,3416.1,3415.5,0.831]
[1732410312298,0.55,3415.7,3414.5,0.831]
[1732410314920,0.55,3415.7,3414.6,0.02928233]
[1732410315596,0.5792953,3415.7,3414.5,0.831]
[1732410316840,0.55,3415.7,3414.5,0.831]
[1732410317247,0.55,3415.7,3414.5,0.781]
[1732410317425,1.33486171,3415.7,3414.5,0.781]
[1732410318034,3.55,3415.5,3414.5,0.781]
[1732410318335,0.0292953,3415.4,3414.5,0.781]
[1732410318695,3.55,3415.5,3414.5,0.781]
[1732410318903,0.55,3415.7,3414.6,0.02928389]
[1732410319134,0.8221,3415.8,3390.6,29.92231366]
[1732410319135,3.0,3415.9,3414.2,2.79633928]
[1732410319349,0.0292953,3415.8,3414.0,0.02927837]
[1732410319550,0.0292953,3415.8,3414.0,0.36092335]
[1732410319919,3.0,3415.9,3414.0,0.36092335]
[1732410320120,3.0292953,3415.9,3414.0,0.36092335]
[1732410320418,3.0,3415.9,3414.1,0.7569]
[1732410320614,3.0,3415.9,3414.3,0.7569]
[1732410320826,0.8091,3416.2,3414.5,0.7569]
[1732410321034,2.79633928,3416.4,3414.3,0.7569]
[1732410321234,2.79633928,3416.4,3414.4,0.7569]
[1732410321434,2.79633928,3416.4,3414.5,0.02927744]
[1732410321634,2.79633928,3416.4,3414.6,0.78617591]
[1732410322449,0.5858447,3416.5,3414.6,2.82561519]
[1732410322659,0.5858447,3416.5,3414.7,0.7569]
[1732410322840,0.5858447,3416.5,3414.8,0.0292734]
[1732410323038,2.79633928,3416.8,3414.9,0.7569]
[1732410323230,2.79633928,3416.8,3415.1,0.7569]
[1732410323432,2.79633928,3416.8,3415.3,0.7569]
[1732410323653,2.79633928,3416.8,3414.7,0.29256152]
[1732410323654,2.79633928,3416.8,3415.5,0.7569]
[1732410323823,2.79633928,3416.8,3415.4,0.02927365]
[1732410323824,3.55,3416.7,3415.6,0.02927365]
[1732410324163,3.55,3416.7,3415.0,0.7569]
[1732410324331,0.59198012,3416.6,3415.2,0.7569]
[1732410324664,0.59198012,3416.6,3415.3,0.78617367]
[1732410325921,3.0,3416.7,3415.3,0.78617367]
[1732410326367,3.55,3417.1,3415.3,0.78617367]
[1732410326667,0.55,3417.1,3415.3,0.7569]
[1732410326826,0.55,3417.1,3415.3,0.7861693]
[1732410327051,2.79633928,3417.2,3415.3,0.7861693]
[1732410327793,3.0,3417.1,3415.5,0.7569]
[1732410327969,3.0,3417.1,3415.6,3.1112739]
[1732410328178,3.0,3417.1,3415.7,0.7569]
[1732410328504,3.0,3417.1,3415.9,0.7569]
[1732410328649,3.0,3417.1,3416.1,0.7569]
[1732410328852,3.0,3417.1,3416.2,2.9272]
[1732410329100,3.0,3417.1,3416.3,0.3713367]
[1732410329454,3.0,3417.1,3416.4,2.9271]
[1732410330209,3.0,3417.1,3416.5,0.7569]
[1732410331106,0.59602454,3417.4,3416.6,2.95616699]
[1732410331410,0.59602454,3417.4,3416.7,1.1385067]
[1732410331561,0.59602454,3417.4,3416.8,2.9267]
[1732410332202,0.07641564,3417.3,3416.8,2.9267]
[1732410332502,0.07641564,3417.3,3417.0,0.7672]
[1732410332671,0.57470457,3417.6,3417.0,0.7672]
[1732410332876,0.57470457,3417.6,3417.1,0.7672]
[1732410332877,0.07640187,3417.2,3417.1,0.7672]
[1732410333092,0.57470457,3417.6,3417.1,0.7672]
[1732410333291,0.07389854,3417.2,3417.1,0.7672]
[1732410333606,0.57470457,3417.6,3417.1,0.7672]
[1732410334107,0.07393985,3417.5,3417.1,0.7672]
[1732410334468,0.07393985,3417.5,3417.1,0.79646162]
[1732410335080,0.07393985,3417.5,3417.2,2.9264]
[1732410335285,3.0,3417.9,3417.3,0.40922516]
[1732410335600,3.0,3417.9,3417.5,0.8235]
[1732410335804,3.55,3418.3,3417.5,0.8235]
[1732410336105,0.27182296,3418.2,3417.5,0.8235]
[1732410336265,3.55,3418.3,3417.5,0.8235]
[1732410336468,3.55,3418.3,3417.6,3.30097]
[1732410336664,0.27176035,3418.2,3417.6,2.926]
[1732410336974,3.55,3418.3,3417.6,2.926]
[1732410337183,3.0,3417.9,3417.6,2.926]
[1732410337381,0.0292953,3417.8,3417.6,2.926]
[1732410337569,3.0,3417.9,3417.6,2.926]
[1732410338310,3.0,3417.9,3417.6,3.2186]
[1732410338511,3.55,3418.3,3417.6,3.2186]
[1732410338673,3.55,3418.3,3417.7,0.8235]
[1732410338873,0.27167198,3418.2,3417.7,0.8235]
[1732410339069,3.0,3418.3,3417.8,0.40421]
[1732410339308,2.79633928,3418.8,3417.9,0.85275583]
[1732410339479,0.27154423,3418.7,3417.9,0.85275583]
[1732410339817,0.0747655,3418.7,3417.9,0.8235]
[1732410340186,0.0747655,3418.7,3418.0,2.9257]
[1732410340387,0.0747655,3418.7,3418.1,0.415341]
[1732410340583,0.1040608,3418.7,3418.2,2.9255]
[1732410340806,3.0747655,3418.7,3418.2,2.9255]
[1732410341110,3.64452115,3418.7,3418.2,2.9255]
[1732410345299,3.64452115,3418.7,3418.3,0.8235]
[1732410345501,3.64452115,3418.7,3418.4,0.3749]
[1732410346103,3.0747655,3418.7,3418.4,0.3749]
[1732410348419,3.0747655,3418.7,3418.3,0.8235]
[1732410348623,3.0747655,3418.7,3418.4,2.9253]
[1732410349221,0.0292953,3418.6,3418.4,2.9253]
[1732410349511,0.07483892,3418.5,3418.4,2.9253]
[1732410351125,3.0,3418.7,3418.4,2.9253]
[1732410351327,0.07483892,3418.5,3418.4,2.9253]
[1732410351526,3.0,3418.7,3418.4,2.9253]
[1732410351728,0.07483892,3418.5,3418.4,2.9253]
[1732410352023,3.0,3418.7,3418.4,2.9253]
[1732410352211,0.07483892,3418.5,3418.4,2.9253]
[1732410352410,3.0,3418.7,3418.4,2.9253]
[1732410352883,0.07485268,3418.6,3418.4,2.9253]
[1732410354005,0.07485268,3418.6,3418.5,0.37488]
[1732410354387,2.79633928,3418.8,3418.5,0.37488]
[1732410354718,0.07486644,3418.7,3418.5,0.37488]
[1732410354918,2.79633928,3418.8,3418.5,0.37488]
[1732410355125,0.07485268,3418.6,3418.5,0.37488]
[1732410355321,2.79633928,3418.8,3418.5,0.37488]
[1732410355529,0.07485268,3418.6,3418.5,3.30018]
[1732410355838,2.79633928,3418.8,3418.5,3.30018]
[1732410355989,0.07485268,3418.6,3418.5,2.9253]
[1732410356190,2.79633928,3418.8,3418.5,2.9253]
[1732410356390,0.07485268,3418.6,3418.5,2.9253]
[1732410356592,2.79633928,3418.8,3418.5,2.9253]
[1732410356805,0.07485268,3418.6,3418.5,2.9253]
[1732410357020,2.79633928,3418.8,3418.5,2.9253]
[1732410357196,0.07485268,3418.6,3418.5,2.9253]
[1732410357539,0.07485268,3418.6,3418.5,3.30018]
[1732410357830,3.57479786,3419.3,3418.5,4.10718]